{"text_format":"1","workbook":"xlsx","n_sheets":4,"sheets":["DRUK ZAMÓWIENIA","Specyfikacja do zasilenia","Kalkulator i spec. konfekcji","Specyfikacja konfekcji "],"not_rendered":{"charts":0,"images":3,"macros":0,"external_links":0,"defined_names":2,"comments":0,"pivot_tables":0},"unopened":[],"bounds":{"document_bytes":16777216,"sheet_cells":100000,"rows_first":2000,"rows_last":500,"rows_between":2000,"halvings":0,"cell_chars":16384,"cell_head_chars":4096},"cells_cut":0,"cells_raw":0,"read":"whole","date_system":"1900"}

{"sheet":"DRUK ZAMÓWIENIA","index":0,"n_rows":58,"n_cols":14,"rows_kept":58,"cut":false,"hidden":false,"merged":[[26,1,26,9],[18,3,18,14],[20,3,20,14],[6,3,6,10],[7,3,7,10],[8,3,8,10],[1,1,1,14],[15,1,15,14],[12,5,12,14],[13,5,13,14],[21,12,21,14],[5,1,5,14],[21,1,21,3],[19,1,19,2],[20,1,20,2],[7,11,7,14],[9,4,9,10],[9,1,9,3],[11,1,11,14],[6,11,6,14],[8,11,8,14],[10,1,10,10],[9,11,9,14],[10,11,10,14],[21,4,21,10],[18,1,18,2],[13,1,13,4],[6,1,6,2],[3,1,3,4],[14,1,14,14],[47,21,52,25],[37,2,37,3],[37,4,37,6],[41,3,41,9],[33,2,33,3],[44,1,44,9],[45,2,45,9],[46,2,46,9],[42,11,43,14],[48,1,49,2],[37,11,37,13],[39,11,40,14],[34,11,36,14],[36,10,47,10],[44,12,44,14],[45,12,45,14],[47,2,47,9],[50,1,54,9],[42,3,42,9],[33,7,33,9],[23,1,23,2],[24,3,24,9],[43,3,43,9],[30,12,30,14],[32,13,33,14],[3,0,58,0],[41,1,41,2],[19,3,19,14],[7,1,7,2],[17,1,17,14],[16,1,16,14],[27,12,27,14],[26,11,26,14],[12,1,12,4],[8,1,8,2],[29,12,29,14],[3,5,3,14],[32,2,32,3],[31,2,31,3],[31,11,31,14],[32,11,33,12],[24,1,24,2],[23,3,23,9],[30,2,30,3],[55,1,55,15],[22,1,22,14],[23,12,23,14],[24,12,24,14],[28,11,28,14],[25,1,25,9],[28,7,28,9],[27,7,27,9],[27,1,27,6],[39,1,40,9],[42,1,42,2],[34,2,34,6],[36,7,36,9],[34,7,34,9],[35,2,35,6],[35,7,35,9],[36,2,36,6],[28,2,28,6],[43,1,43,2],[48,3,49,9],[46,11,54,14],[41,12,41,14],[33,4,33,6],[30,4,30,6],[31,4,31,6],[30,7,30,9],[31,7,31,9],[32,4,32,6],[32,7,32,9],[29,2,29,6],[29,7,29,9]]}
[2]
[]
[]
["www.pluxee.pl, e-mail: kontakt@pluxeegroup.com, tel.: 22 535 14 14","Key Account Manager/Przedstawiciel Pluxee:"]
[]
[null,"I. Dane Klienta (Podmiotu zamawiającego do dokumentów finansowo-księgowych):"]
[null,"Nazwa  Firmy:",null,null,null,null,null,null,null,null,null,"Adres do wysyłki faktury Proforma oraz informacji o statusie zamówienia:"]
[null,"Ulica:",null,null,null,null,null,null,null,null,null,"e-mail:"]
[null,"Kod, miasto:",null,null,null,null,null,null,null,null,null,"Adres do przesłania dokumentów księgowych:"]
[null,"NIP:",null,null,"Telefon:",null,null,null,null,null,null,"e-mail:"]
[null,"Nr rachunku bankowego Klienta  (rachunek, z którego będą opłacane wszystkie należności wynikające z zamówienia):"]
[null,"  Zapłata przez podmiot trzeci (możliwość zapłaty przez podmiot inny niż Klient podlega akceptacji Pluxee):"]
[null,"Nazwa, adres i NIP podmiotu trzeciego : "]
[null,"Nr rachunku bankowego podmiotu trzeciego:"]
[null," Zamawiający posiada stałe miejsce prowadzenia działaności poza terytorium Polski*"]
[null," Karty są wydawane osobom zajmującym eksponowane stanowisko polityczne**"]
[null,"W przypadku konieczności wskazania na dokumentach księgowych danych ODBIORCY prosimy o uwzględnienie tego w polu UWAGI"]
[null,"II. Dostawa Kart (jeśli adres dostawy jest inny niż podany w sekcji I.):"]
[null,"Nazwa  Firmy:"]
[null,"Ulica:"]
[null,"Kod, miasto:"]
[null,"Liczba punktów doręczeń:",null,null,1,null,null,null,null,null,null,"Liczba Użytkowników Kart:"]
[null,"III. Dane osoby upoważnionej do odbioru Kart Pluxee Lunch (prosimy o podanie danych dwóch osób):"]
[null,"Imię i nazwisko:",null,null,null,null,null,null,null,null,null,"Telefon:"]
[null,"Imię i nazwisko:",null,null,null,null,null,null,null,null,null,"Telefon:"]
[null,"IV. Zamawiam Karty Plucee Lunch:"]
[null,"Karty zbliżeniowe",null,null,null,null,null,null,null,null,null,"VI. Proponowana data dostawy Kart:"]
[null,"V. Specyfikacja zamówienia Kart Lunch:",null,null,null,null,null,"Wartość (PLN)",null,null,null,"(dzień – miesiąc – rok):"]
[null,"A","Łączna ilość Kart:",null,null,null,null,0,null,null,null,"VII. Proponowana data zasilenia/aktywacji Kart:"]
[null,"B","Łączna wartość zasileń:",null,null,null,null,0,null,null,null,"(dzień – miesiąc – rok):"]
[null,"C","Prowizja od wartości zasilenia Kart (4%/min.25zł)",null,0.04,null,null,{"$f":"IF(E31*H30<=25,25,E31*H30)","v":25}]
[null,"D","Opłata za przygotowanie i dostawę przesyłki (1 miejsce dostawy):",null,60,null,null,{"$f":"E32*E22","v":60},null,null,null,"VIII. Sieć akceptacji Kart Lunch Pass (wybór jednej opcji):"]
[null,"E","Konfekcja wg kalkulatora:",null,null,null,null,{"$f":"'Kalkulator i spec. konfekcji'!E30","v":0},null,null,null," Gastronomia:",null,"Gastronomia\ni sklepy spożywcze:"]
[null,"F","Opłata za wydanie Kart (A*F):",null,{"$f":"IF(A1=1,13.9,15.9)","v":15.9},null,null,{"$f":"H29*E34","v":0}]
[null,null,"Suma netto:",null,null,null,null,{"$f":"H30+H31+H32+H33+H34","v":85},null,null,null,"UWAGI: "]
[null,"G","Podatek VAT (23%) (od poz. C+D+E+F):",null,null,null,null,{"$f":"ROUND(23%*H31,2)+ROUND(23%*SUM(H32:I34),2)","v":19.55}]
[null,"H","Razem do zapłaty (poz. B+C+D+E+F+G)",null,null,null,null,{"$f":"H35+H36","v":104.55}]
[]
[]
[null,"IX. Wypełnia Klient (dane osoby, która sporządziła niniejsze zamówienie oraz          pieczęć firmowa):",null,null,null,null,null,null,null,null,null," X. Nr tel. komórkowego na potrzeby konfekcji:"]
[]
[null,"Imię i nazwisko:",null,null,null,null,null,null,null,null,null,"Numer telefonu do wysyłki SMS z hasłem:"]
[null,"E-mail:",null,null,null,null,null,null,null,null,null,"XI. Wypełnia Pluxee (dane osoby, która przyjęła niniejsze zamówienie):"]
[null,"Nr telefonu:"]
[null,"Prosimy zaznacz poniższe zgody, jeśli dotychczas ich nie wyrażałaś/eś:",null,null,null,null,null,null,null,null,null,"Imię i Nazwisko:"]
[null,null,"Wyrażam dobrowolną zgodę na otrzymywanie informacji handlowych i marketingowych od Pluxee na podany przeze mnie adres poczty elektronicznej",null,null,null,null,null,null,null,null,"Numer zamówienia:"]
[null,null,"Wyrażam dobrowolną zgodę na prowadzenie przez Pluxee działań marketingowych przy użyciu podanego przeze mnie numeru telefonu.",null,null,null,null,null,null,null,null,"* Oświadczenie dotyczy wykorzystywania zakupionych usług na potrzeby stałego miejsca prowadzenia działalności, które znajduje się poza terytorium Polski, w rozumieniu art. 28b ustawy z dnia 11 marca 2004 r. o podatku od towarów i usług (Dz.U. 2004 Nr54 poz 535 VAT z późn. Zm.).\n** Oświadczenie Zamawiającego dotyczy wydawania Kart osobom zajmującym eksponowane stanowisko polityczne w rozumieniu art. 2 ust. 2 ustawy z dnia 1 marca 2018 r. o przeciwdziałaniu praniu pieniędzy oraz finansowaniu terroryzmu.\nAdministratorem Twoich danych osobowych jest Pluxee Polska Sp. z o.o. z siedzibą w Warszawie, ul. Rzymowskiego 53 (\"Pluxee\"). Dane kontaktowe Inspektora Ochrony Danych: privacy.pl@pluxeegroup.com, nr tel. (22) 535 11 11. Twoje dane będą przetwarzane w celach marketingowych Pluxee (podstawa przetwarzania danych to realizacja prawnie uzasadnionych interesów Pluxee w postaci marketingu produktów i usług Pluxee – art. 6 ust. 1 lit. f) RODO), w tym w sposób zautomatyzowany (profilowanie). Pluxee wykorzystuje profilowanie prowadząc statystyki i analizy Twoich zachowań oraz preferencji, związanych z zakupem lub korzystaniem z produktów i usług Pluxee w celu lepszego dopasowania do Twoich oczekiwań oferowanych produktów i usług. W wyniku profilowania dokonywanego przez Pluxee będziesz otrzymywać informacje o produktach i usługach lepiej dostosowanych do Twoich preferencji. Tylko w przypadku, gdy wyrazisz na to wyraźną zgodę, Pluxee będzie przetwarzać Twoje dane osobowe w celu profilowania, którego skutkiem będą automatycznie podejmowane decyzje, mające dla Ciebie znaczenie np. udzielenie rabatów lub ofert specjalnych (podstawa przetwarzania danych to Twoja zgoda – art. 6 ust. 1 lit. a) RODO). Podanie przez Ciebie danych osobowych jest dobrowolne. Skutkiem niepodania danych będzie brak możliwości informowania Cię o produktach i usługach Pluxee. Twoje dane mogą być przekazywane podmiotom świadczącym na naszą rzecz usługi serwisowe z zakresu IT, usługi telemarketingu oraz podmiotom przygotowującym i realizującym dla nas wysyłkę e-maili. Dane osobowe będziemy przetwarzać do czasu ewentualnego wniesienia przez Ciebie sprzeciwu wobec przetwarzania danych, względnie - odwołania zgody, a po tym okresie wyłącznie dla celów i przez okres oraz w zakresie wymaganym przez przepisy prawa lub dla zabezpieczenia ewentualnych roszczeń. Możesz żądać dostępu do swoich danych osobowych, ich sprostowania, usunięcia lub ograniczenia przetwarzania. Masz prawo wniesienia sprzeciwu wobec przetwarzania – w tym profilowania. Masz także prawo do przenoszenia swoich danych oraz prawo cofnięcia zgody w każdym czasie, co pozostanie bez wpływu na zgodność z prawem przetwarzania dokonanego przez Pluxee przed jej cofnięciem oraz masz prawo wniesienia skargi do organu nadzorczego (Prezesa Urzędu Ochrony Danych Osobowych)."]
[null,null,"Wyrażam dobrowolną zgodę na profilowanie, którego skutkiem będą automatycznie podejmowane decyzje, mające dla mnie znaczenie – jak np. udzielenie rabatów lub ofert specjalnych. "]
[null,"Data",null,"Pieczęć firmowa i podpis"]
[]
[null,"\nWYŻEJ WYMIENIONE DANE SĄ NIEZBĘDNE DO REALIZACJI ZAMÓWIENIA\nPoprzez umieszczenie podpisu pod niniejszym Zamówieniem i jego przesłanie w formie papierowej lub elektronicznej , jak również zaakceptowanie wypełnionego Zamówienia w formie mailowej Zamawiający oświadcza, że:  \n- jest upoważniony do reprezentowania Klienta na podstawie KRS, CEIDG lub pełnomocnictwa oraz,  że \nzapoznał się i akceptuje Ogólne Warunku Świadczenia Usług \"OWU\", które stanowią integralną część zamówienia. \n- upoważnia Pluxee Polska Sp. z o.o. do wystawienia faktury VAT bez podpisu. Dane do faktury zostały określone w punkcie I.\n- zamówione Karty są udostępnione byłym lub obecnym pracownikom lub współpracownikom. Tożsamość osób otrzymujących karty jest przez nas weryfikowana, a ich  dane są przez nas przechowywane.\nCZYTELNIE WYPEŁNIONE ZAMÓWIENIE PROSIMY WYSŁAĆ:\n- e-mailem na adres: kontakt@pluxeegroup.com\nSkładając Zamówienie Klient każdorazowo zawiera Umowę na dostawę Kart wskazanych w Zamówieniu, na warunkach określonych w tym Zamówieniu i OWU, których postanowienia zastępują postanowienia dotychczasowych, innych Umów zawartych odrębnie z Klientem.  Postanowienia dotychczasoych, odrębnych umów znajdują zastosowanie tylko w zakresie niezdefiniowanym w OWU i Zamówieniu, w szczególności w zakresie warunków cenowych.\n\n"]
[]
[]
[]
[]
[null,"Pluxee Polska Sp. z o.o. z siedzibą w Warszawie, ul. Rzymowskiego 53, 02-697 Warszawa, Sąd Rejonowy dla m. st. Warszawy w Warszawie, XIII Wydział Gospodarczy KRS , numer KRS 0000033826, Kapitał Zakładowy 3 000 000 PLN , NIP 522-23-57-343"]
[]
[null,"DRUK V. 10.2021"]

{"sheet":"Specyfikacja do zasilenia","index":1,"n_rows":43,"n_cols":3,"rows_kept":43,"cut":false,"hidden":false,"merged":[[0,1,0,2],[1,1,2,2],[36,6,36,7],[2,3,30,3],[38,3,65535,3],[41,1,41,2],[42,1,42,2],[1,0,35,0],[3,1,3,2]]}
[null,"SPECYFIKACJA DO ZASILENIA \nKARTY PLUXEE LUNCH"]
["www.pluxee.pl, e-mail: kontakt@pluxeegroup.com, tel.: 22 535 14 14","Załącznik nr do zamówienia Firmy:"]
[]
[null,"I. Zasilam Karty Pluxee Lunch według poniższej specyfikacji:"]
[null,"WPISZ ILOŚĆ KART \n(Podać w przypadku zakupu nowych Kart)","KWOTA ZASILENIA"]
[null,"NUMER KARTY \n(Podać w przypadku doładowania posiadanych Kart)","KWOTA ZASILENIA"]
[]
[]
[]
[]
[]
[]
[]
[]
[]
[]
[]
[]
[]
[]
[]
[]
[]
[]
[]
[]
[]
[]
[null,"RAZEM ILOŚĆ KART:"]
[]
[]
[]
[]
[]
[]
[]
[]
[]
[]
[]
[]
[null,"WYPEŁNIONĄ SPECYFIKACJĘ PROSIMY WYSŁAĆ MAILEM na adres: kontakt@pluxeegroup.com\n"]
[null,"Pluxee Polska Sp. z o.o. z siedzibą w Warszawie, ul. Rzymowskiego 53, 02-697 Warszawa, Sąd Rejonowy dla m. st. Warszawy w Warszawie,\nXIII Wydział Gospodarczy KRS , numer KRS 0000033826, Kapitał Zakładowy 3 000 000 PLN , NIP 522-23-57-343"]

{"sheet":"Kalkulator i spec. konfekcji","index":2,"n_rows":42,"n_cols":7,"rows_kept":42,"cut":false,"hidden":false,"merged":[[23,2,23,3],[29,2,29,3],[34,1,39,4],[11,1,11,2],[1,1,9,4]]}
[]
[null,"KALKULATOR KOSZTU KONFEKCJI KART \nORAZ SPECYFIKACJA DO KONFEKCJI"]
[]
[]
[]
[]
[]
[]
[]
[]
[]
[null,"PERSONALIZACJA / INSERTY",null,"Liczba Kart:"]
[]
[null,"   Ozdobne etui na koperty - projekt standardowy Pluxee",1.5,"NIE",{"$f":"IF((D14=\"TAK\"),C14*$E$12,0)","v":0},"Uzupełnij opis poniżej ",{"$f":"IF(D14 =\"NIE\",\"\",\"Proszę upełnić specyfikację konfekcji\")","v":""}]
[]
[null,"Włożenie kopert z kartami do etui ozdobnego Pluxee",0.3,"NIE",{"$f":"IF((D16=\"TAK\"),C16*$E$12,0)","v":0},"Uzupełnij opis poniżej ",{"$f":"IF(D16 =\"NIE\",\"\",\"Proszę upełnić specyfikację konfekcji\")","v":""}]
[]
[null,"   Personalizacja nadruku na kopercie lub etui (np.imię i nazwisko, kwota) - nadruk czarno-biały ",0.49,"NIE",{"$f":"IF((D18=\"TAK\"),C18*$E$12,0)","v":0},"Uzupełnij opis poniżej ",{"$f":"IF(D18 =\"NIE\",\"\",\"Proszę upełnić specyfikację konfekcji\")","v":""}]
[]
[null,"Personalizacja nadruku niestandardowego na kopercie lub etui (np. logo klienta) - nadruk kolorowy ",0.8,"NIE",{"$f":"IF((D20=\"TAK\"),C20*$E$12,0)","v":0},null,{"$f":"IF(D20 =\"NIE\",\"\",\"Proszę upełnić specyfikację konfekcji\")","v":""}]
[]
[null,"   Dołożenie dodatkowych ulotek do kopert lub etui (format A5 lub mniejszy, złożony w 'C')",0.4,"NIE",{"$f":"IF((D22=\"TAK\"),C22*$E$12,0)","v":0},null,{"$f":"IF(D22 =\"NIE\",\"\",\"Proszę upełnić specyfikację konfekcji\")","v":""}]
[]
[null,"PACZKOWANIE"," Liczba oddzielnych podpaczek:"]
[]
[null,"   Pakowanie zamówienia w podziale na kilka podpaczek pod jeden adres dostawy",7,"NIE",{"$f":"IF((D26=\"TAK\"),C26*$E$24,0)","v":0},"Uzupełnij opis poniżej ",{"$f":"IF(D26 =\"NIE\",\"\",\"Proszę upełnić specyfikację konfekcji\")","v":""}]
[]
[null,"   Ułożenie kopert w paczce (np. alfabetycznie, wg kwot zasilenia, wg przesłanej listy)",0.1,"NIE",{"$f":"IF((D28=\"TAK\"),C28*$E$12,0)","v":0},"Uzupełnij opis poniżej ",{"$f":"IF(D28 =\"NIE\",\"\",\"Proszę upełnić specyfikację konfekcji\")","v":""}]
[]
[null,null,"Łącznie koszt konfekcji:",null,{"$f":"E14+E18+E22+E26+E28+E20+E16","v":0}]
[]
[]
[]
[]
[null,"Szczegółowy opis wykonania usługi: "]
[]
[]
[]
[]
[]
[]
[null,"* W przypadku personalizowanych kopert powinien zostać wypełniony standardowy załącznik Excel zawierający niezbędne dane"]

{"sheet":"Specyfikacja konfekcji ","index":3,"n_rows":1,"n_cols":4,"rows_kept":1,"cut":false,"hidden":false,"merged":[]}
["Imię ","Nazwisko ","Kwota zasilenia ","Dodatkowe uwagi "]